bitfinex-derivatives/quotes_SOLF0:USTF0_20250514
["timestamp","ask_amount","ask_price","bid_price","bid_amount"]
[1747222493427,5.5132,181.38,181.35,61.56]
[1747222493923,61.44,181.42,181.35,61.56]
[1747222494129,5.5135,181.37,181.35,61.56]
[1747222497228,5.5136,181.36,181.35,61.56]
[1747222497532,61.44,181.42,181.33,61.54]
[1747222498029,5.5139,181.36,181.33,61.54]
[1747222498328,61.44,181.42,181.33,61.54]
[1747222498730,61.44,181.42,181.31,5.515]
[1747222498929,61.44,181.42,181.32,61.54]
[1747222499333,5.514,181.35,181.32,61.54]
[1747222501240,5.5135,181.37,181.32,61.54]
[1747222501433,60.82,181.4,181.32,61.54]
[1747222501739,5.5137,181.36,181.32,67.0547]
[1747222502437,60.82,181.4,181.26,476.98]
[1747222502635,60.82,181.4,181.27,122.32]
[1747222502933,60.82,181.4,181.28,122.32]
[1747222503835,5.5136,181.36,181.32,5.5146]
[1747222504034,5.5136,181.36,181.33,61.54]
[1747222504535,5.5136,181.36,181.33,67.0544]
[1747222504735,5.5139,181.35,181.33,61.54]
[1747222505142,60.66,181.41,181.33,61.54]
[1747222505638,5.5138,181.36,181.33,61.54]
[1747222506239,5.5138,181.36,181.33,67.0544]
[1747222506441,60.56,181.44,181.33,122.1]
[1747222507135,60.56,181.44,181.34,61.54]
[1747222507535,5.5132,181.38,181.34,67.054]
[1747222508939,5.5134,181.37,181.34,61.54]
[1747222509639,60.46,181.41,181.28,6.89808066]
[1747222509841,60.46,181.41,181.3,60.42]
[1747222510342,60.46,181.41,181.31,61.52]
[1747222510740,5.5138,181.36,181.32,5.5145]
[1747222510942,60.46,181.41,181.32,5.5145]
[1747222511441,60.46,181.41,181.31,67.035]
[1747222511634,60.46,181.41,181.31,61.52]
[1747222512038,5.5138,181.36,181.32,5.5148]
[1747222512341,60.46,181.41,181.32,5.5148]
[1747222513744,364.0,181.52,181.33,60.2]
[1747222513938,62.60208658,181.51,181.34,1.8949]
[1747222514140,5.5114,181.44,181.34,1.8949]
[1747222514439,72.6381,181.51,181.34,1.8949]
[1747222514846,72.6381,181.51,181.39,5.5126]
[1747222515042,0.98204146,181.5,181.39,67.0326]
[1747222515246,5.5113,181.44,181.39,67.0326]
[1747222515842,5.5113,181.44,181.4,5.5123]
[1747222516843,61.42,181.48,181.39,61.52]
[1747222517043,365.8302,181.52,181.39,61.52]
[1747222517343,61.4,181.48,181.42,5.5117]
[1747222517845,61.4,181.48,181.41,5.512]
[1747222518046,365.8302,181.52,181.39,61.52]
[1747222518243,61.32,181.51,181.39,61.52]
[1747222518447,62.30190611,181.51,181.42,5.5115]
[1747222518647,61.32,181.51,181.42,5.5115]
[1747222518846,5.5108,181.46,181.39,61.52]
[1747222519047,61.32,181.51,181.34,1.8949]
[1747222519247,61.32,181.51,181.35,122.76]
[1747222519449,5.5108,181.45,181.42,5.5117]
[1747222520453,5.5105,181.47,181.43,5.5114]
[1747222520852,61.32,181.51,181.43,5.5114]
[1747222521054,5.5108,181.46,181.42,5.5117]
[1747222521950,1.8302,181.52,181.41,61.52]
[1747222522148,1.8302,181.52,181.37,483.33808066]
[1747222522361,1.8302,181.52,181.38,122.28]
[1747222522555,5.5104,181.47,181.43,5.5112]
[1747222522960,61.08,181.49,181.43,5.5112]
[1747222523160,5.5104,181.47,181.43,5.5112]
[1747222523557,61.08,181.49,181.43,5.5112]
[1747222524458,5.5105,181.47,181.43,5.5112]
[1747222526561,5.5106,181.46,181.43,66.6912]
[1747222528262,5.5106,181.46,181.44,5.5111]
[1747222528758,5.51,181.48,181.45,5.5108]
[1747222528965,5.51,181.48,181.43,61.18]
[1747222529359,5.5103,181.47,181.43,61.18]
[1747222529865,5.51,181.48,181.45,5.5107]
[1747222530564,5.5103,181.47,181.45,5.5107]
[1747222533064,5.51,181.48,181.45,5.5107]
[1747222533967,5.5103,181.47,181.44,5.511]
[1747222534169,60.44,181.51,181.43,61.18]
[1747222534966,60.44,181.51,181.41,61.18]
[1747222535264,5.5111,181.45,181.41,61.18]
[1747222535468,60.44,181.51,181.41,61.18]
[1747222536066,5.5111,181.44,181.41,66.6919]
[1747222536766,5.5109,181.45,181.42,5.5117]
[1747222538169,5.5112,181.44,181.42,5.5117]
[1747222538369,5.5112,181.44,181.41,66.6919]
[1747222539266,60.44,181.51,181.41,61.18]
[1747222540772,60.44,181.51,181.41,66.6919]
[1747222541473,5.511,181.45,181.42,5.5117]
[1747222541671,60.44,181.51,181.42,5.5117]
[1747222541869,60.44,181.51,181.38,60.36]
[1747222541870,4.30686762,181.49,181.37,476.44]
[1747222542164,4.30686762,181.46,181.34,63.0749]
[1747222542367,123.0299,181.45,181.34,61.18]
[1747222542569,5.5129,181.39,181.34,66.6941]
[1747222542772,1.8576,181.44,181.34,61.18]
[1747222543671,5.5135,181.37,181.34,61.18]
[1747222543873,5.5135,181.37,181.34,66.6942]
[1747222545172,5.5127,181.39,181.34,66.6942]
[1747222545774,5.5127,181.39,181.35,5.5138]
[1747222545972,5.5121,181.41,181.35,5.5138]
[1747222546874,5.5121,181.41,181.36,5.5135]
[1747222547568,5.5124,181.4,181.35,5.5138]
[1747222547873,1.8576,181.44,181.34,61.18]
[1747222548876,5.5122,181.41,181.37,5.5131]
[1747222549080,1.8576,181.44,181.34,61.18]
[1747222549471,59.72,181.46,181.36,4.30686762]
[1747222549674,59.72,181.46,181.37,59.82]
[1747222549966,65.2307,181.46,181.43,5.5113]
[1747222550166,59.72,181.46,181.41,59.78]
[1747222550370,61.5881,181.49,181.41,59.78]
[1747222550571,5.51,181.48,181.45,5.5106]
[1747222550771,61.5881,181.49,181.41,59.78]
[1747222551873,5.5101,181.48,181.45,5.5106]
[1747222552077,61.5881,181.49,181.41,59.78]
[1747222552778,67.098,181.49,181.46,5.5103]
[1747222552975,61.5881,181.49,181.46,5.5103]
[1747222553176,61.5881,181.49,181.41,59.78]
[1747222553380,5.5099,181.48,181.45,5.5106]
[1747222553681,61.5881,181.49,181.41,59.78]
[1747222554177,7.2779,181.49,181.41,59.78]
[1747222554480,1.7681,181.49,181.47,5.5102]
[1747222554680,1.7681,181.49,181.41,59.78]
[1747222555278,1.7681,181.49,181.46,5.5103]
[1747222555781,7.2777,181.49,181.46,5.5103]
[1747222555969,7.2777,181.49,181.47,5.5102]
[1747222556175,1.7681,181.49,181.41,59.78]
[1747222556576,7.2778,181.49,181.46,5.5103]
[1747222556776,1.7681,181.49,181.41,59.78]
[1747222557283,5.5101,181.48,181.41,59.78]
[1747222558083,5.5101,181.48,181.45,5.5107]
[1747222558383,1.7681,181.49,181.41,59.78]
[1747222558683,1.7681,181.49,181.42,59.78]
[1747222559090,5.5104,181.47,181.42,59.78]
[1747222559384,1.7681,181.49,181.42,59.78]
[1747222560387,5.5104,181.47,181.44,5.5109]
[1747222561081,7.2778,181.49,181.46,5.5103]
[1747222561286,1.7681,181.49,181.42,59.78]
[1747222561686,1.7681,181.49,181.46,5.5103]
[1747222562084,1.7681,181.49,181.42,59.78]
[1747222562685,7.2779,181.49,181.46,5.5103]
[1747222562884,1.7681,181.49,181.42,52.88944469]
[1747222563187,1.7681,181.49,181.48,5.5099]
[1747222563389,1.7681,181.49,181.42,52.88944469]
[1747222563786,59.78,181.56,181.42,52.88944469]
[1747222563787,59.78,181.56,181.43,59.18]
[1747222563988,59.78,181.56,181.44,4.30686762]
[1747222563989,59.18,181.55,181.44,4.30686762]
[1747222564190,59.18,181.55,181.44,5.41016762]
[1747222564894,59.18,181.55,181.53,5.5081]
[1747222565190,3.6025,181.57,181.5,59.78]
[1747222565388,1.8297,181.57,181.55,5.5077]
[1747222565589,1.8297,181.57,181.5,59.78]
[1747222566093,59.18,181.61,181.5,64.08686762]
[1747222566281,59.18,181.61,181.51,1.821]
[1747222566593,1.8304,181.65,181.53,4.30686762]
[1747222566791,1.8304,181.65,181.54,59.28]
[1747222566990,1.8304,181.65,181.55,59.76]
[1747222567386,7.3352,181.65,181.6,5.506]
[1747222567690,5.37214449,181.62,181.61,59.76]
[1747222568191,427.3994,181.73,181.61,59.76]
[1747222568388,59.3,181.72,181.61,59.76]
[1747222568589,59.3,181.72,181.59,4.30686762]
[1747222568787,59.3,181.72,181.6,119.06]
[1747222568983,5.5041,181.68,181.61,59.76]
[1747222569188,59.3,181.72,181.61,59.76]
[1747222569682,59.3,181.72,181.59,4.30686762]
[1747222569886,4.30686762,181.71,181.6,59.76]
[1747222570591,5.505,181.65,181.6,59.76]
[1747222570894,59.26,181.67,181.6,59.76]
[1747222571190,5.505,181.65,181.6,59.76]
[1747222571392,59.26,181.67,181.59,59.76]
[1747222571594,1.8126,181.66,181.58,59.76]
[1747222573295,1.8126,181.66,181.58,65.2667]
[1747222573683,4.30686762,181.65,181.49,4.30686762]
[1747222573887,5.5075,181.56,181.52,5.5087]
[1747222574296,59.3,181.6,181.51,59.74]
[1747222574488,5.5077,181.56,181.52,5.5087]
[1747222575092,59.3,181.6,181.51,59.74]
[1747222575894,5.5067,181.59,181.51,59.74]
[1747222576396,59.2,181.61,181.51,59.74]
[1747222577093,5.5069,181.58,181.54,5.5079]
[1747222577601,5.5069,181.58,181.55,5.5077]
[1747222577892,5.5073,181.57,181.51,59.74]
[1747222578085,59.2,181.61,181.51,59.74]
[1747222578288,59.2,181.61,181.55,5.5078]
[1747222578490,5.5063,181.6,181.51,59.74]
[1747222578794,59.2,181.61,181.51,59.74]
[1747222579891,5.5078,181.55,181.51,65.2488]
[1747222580095,5.5078,181.55,181.51,59.74]
[1747222580597,5.5076,181.56,181.52,5.5087]
[1747222580798,59.2,181.61,181.51,59.74]
[1747222581097,5.508,181.55,181.51,65.2488]
[1747222581399,5.508,181.55,181.51,59.74]
[1747222582194,59.2,181.61,181.52,5.5084]
[1747222582494,59.2,181.61,181.53,5.5083]
[1747222582694,58.94,181.6,181.51,59.74]
[1747222585797,5.5078,181.55,181.51,65.2489]
[1747222586001,5.5078,181.55,181.52,5.5087]
[1747222586398,5.5076,181.56,181.51,59.74]
[1747222587298,58.9,181.6,181.51,59.74]
[1747222587497,4.30686762,181.58,181.51,59.74]
[1747222587796,1.7686,181.57,181.51,59.74]
[1747222587989,5.5083,181.54,181.51,59.74]
[1747222588697,58.76,181.55,181.51,59.74]
[1747222589191,5.5084,181.54,181.51,59.74]
[1747222589396,58.76,181.55,181.51,59.74]
[1747222589798,5.5083,181.54,181.51,65.249]
[1747222590300,58.76,181.55,181.51,59.74]
[1747222590998,58.76,181.55,181.45,58.74]
[1747222590999,4.30686762,181.52,181.45,64.5508]
[1747222591196,4.30686762,181.52,181.45,59.04]
[1747222591394,4.30686762,181.52,181.43,5.5112]
[1747222591796,4.30686762,181.52,181.41,59.04]
[1747222591996,5.5101,181.48,181.44,5.5109]
[1747222592199,64.2101,181.48,181.41,59.04]
[1747222592496,64.2101,181.48,181.44,5.511]
[1747222592989,64.2101,181.48,181.41,59.04]
[1747222593500,58.7,181.48,181.41,59.04]
[1747222593798,58.62,181.5,181.41,59.04]
[1747222594198,64.1295,181.5,181.47,5.51]
[1747222594588,5.5099,181.48,181.45,5.5107]
[1747222595095,5.5102,181.47,181.45,5.5107]
[1747222595297,58.62,181.5,181.41,59.04]
[1747222595797,5.51,181.48,181.41,59.04]
[1747222596100,58.62,181.5,181.41,59.04]
[1747222597003,5.5101,181.48,181.41,59.04]
[1747222597502,5.5102,181.47,181.44,5.511]
[1747222597702,58.62,181.5,181.41,59.04]
[1747222598705,5.5108,181.46,181.42,5.5115]
[1747222598905,5.5108,181.46,181.41,59.04]
[1747222599202,1.865,181.49,181.42,5.5117]
[1747222599402,1.7647,181.48,181.41,59.04]
[1747222599902,5.5108,181.46,181.41,59.04]
[1747222600500,1.7647,181.48,181.41,59.04]
[1747222601507,5.5107,181.46,181.43,5.5113]
[1747222601708,1.7647,181.48,181.41,59.04]
[1747222602106,1.7647,181.48,181.41,64.5518]
[1747222602805,1.7647,181.48,181.41,59.04]
[1747222603206,5.511,181.45,181.41,64.5518]
[1747222603406,64.671,181.45,181.41,64.5518]
[1747222603807,59.16,181.45,181.41,64.5518]
[1747222604607,5.5112,181.44,181.41,64.5518]
[1747222605210,64.6709,181.45,181.41,64.5518]
[1747222605407,64.6709,181.45,181.42,5.5117]
[1747222606510,59.16,181.45,181.41,59.04]
[1747222607713,5.5116,181.43,181.41,59.04]
[1747222609410,63.46686762,181.45,181.27,476.3]
[1747222609703,4.30686762,181.42,181.31,59.08]
[1747222609912,4.30686762,181.39,181.31,59.08]
[1747222610107,4.30686762,181.36,181.26,59.08]
[1747222610308,59.08,181.36,181.26,59.08]
[1747222610511,64.5936,181.36,181.26,59.08]
[1747222610711,59.08,181.36,181.26,59.08]
[1747222611017,59.08,181.36,181.32,5.5146]
[1747222611712,1.7266,181.38,181.26,4.30686762]
[1747222611910,59.14,181.39,181.29,4.30686762]
[1747222612111,59.16,181.4,181.29,63.46686762]
[1747222612413,59.16,181.4,181.29,59.16]
[1747222612611,60.9394,181.4,181.29,59.16]
[1747222612814,5.5138,181.36,181.29,59.16]
[1747222613110,60.9394,181.4,181.29,59.16]
[1747222613310,60.9394,181.4,181.33,5.5142]
[1747222613711,4.30686762,181.38,181.28,59.08]
[1747222614011,4.30686762,181.35,181.29,5.5156]
[1747222614211,61.0395,181.34,181.29,5.5156]
[1747222614413,61.0395,181.34,181.3,5.5154]
[1747222614611,61.0395,181.34,181.28,59.08]
[1747222615111,5.5147,181.33,181.28,59.08]
[1747222615309,5.5147,181.33,181.3,5.5154]
[1747222615513,61.0395,181.34,181.28,59.08]
[1747222616514,61.0395,181.34,181.32,5.5146]
[1747222617413,66.5537,181.34,181.32,5.5146]
[1747222617617,61.0395,181.34,181.32,5.5146]
[1747222617912,59.18,181.35,181.33,5.5145]
[1747222618414,59.18,181.35,181.28,59.08]
[1747222618615,64.6939,181.35,181.32,5.5146]
[1747222618815,59.18,181.35,181.28,59.08]
[1747222619311,63.38686762,181.38,181.28,59.08]
[1747222619511,59.1,181.37,181.28,59.08]
[1747222619811,5.5137,181.36,181.28,59.08]
[1747222620012,59.1,181.37,181.28,59.08]
[1747222620616,5.5147,181.33,181.3,5.5154]
[1747222621319,59.04,181.32,181.25,59.1]
[1747222621820,59.04,181.32,181.3,5.5152]
[1747222622718,59.04,181.32,181.31,5.5151]
[1747222622914,59.04,181.32,181.25,59.1]
[1747222623222,64.5549,181.32,181.25,59.1]
[1747222623420,59.04,181.32,181.25,59.1]
[1747222623920,63.34686762,181.32,181.23,59.1]
[1747222624122,5.5508,181.31,181.23,59.1]
[1747222624424,5.5168,181.26,181.23,64.6173]
[1747222624921,58.94,181.27,181.23,59.1]
[1747222626323,5.5167,181.26,181.23,64.6174]
[1747222626518,58.94,181.27,181.23,59.1]
[1747222626715,62.6244,181.31,181.23,59.1]
[1747222627018,68.1396,181.31,181.23,59.1]
[1747222627422,62.6244,181.31,181.23,59.1]
[1747222628119,5.5159,181.29,181.23,59.1]
[1747222628322,62.6244,181.31,181.23,59.1]
[1747222629225,5.5168,181.26,181.23,64.6174]
[1747222630028,62.6244,181.31,181.24,5.5172]
[1747222630223,62.6244,181.31,181.23,59.1]
[1747222630829,62.6244,181.31,181.24,5.517]
[1747222631025,62.6244,181.31,181.23,59.1]
[1747222631227,62.7044,181.31,181.23,59.1]
[1747222631822,5.5158,181.29,181.23,59.1]
[1747222632031,67.01126762,181.31,181.23,59.1]
[1747222632524,5.5166,181.27,181.23,59.1]
[1747222632727,67.01126762,181.31,181.23,59.1]
[1747222632923,62.7044,181.31,181.23,59.1]
[1747222633124,5.5156,181.3,181.23,59.1]
[1747222633319,62.7044,181.31,181.23,59.1]
[1747222633519,364.0,181.46,181.28,4.30686762]
[1747222633724,1.7707,181.41,181.29,59.12]
[1747222634129,1.7707,181.41,181.35,5.5137]
[1747222634130,5.5127,181.39,181.35,5.5137]
[1747222634427,59.14,181.4,181.29,59.12]
[1747222634628,5.5127,181.39,181.35,5.5136]
[1747222635624,5.5131,181.38,181.34,5.5141]
[1747222635826,5.5131,181.38,181.29,59.12]
[1747222636729,5.5131,181.38,181.34,5.514]
[1747222637531,5.5133,181.37,181.34,5.514]
[1747222637730,118.26,181.4,181.19,11.0375]
[1747222637927,5.5141,181.35,181.23,59.14]
[1747222638122,60.9827,181.36,181.23,59.14]
[1747222638427,5.515,181.32,181.23,59.12]
[1747222638830,60.9827,181.36,181.27,5.516]
[1747222639027,5.5152,181.31,181.27,5.516]
[1747222639234,60.9827,181.36,181.26,59.12]
[1747222639535,59.12,181.34,181.26,59.12]
[1747222639731,5.5159,181.29,181.26,59.12]
[1747222639933,59.14,181.3,181.26,64.6366]
[1747222640129,64.6555,181.3,181.26,59.12]
[1747222640334,59.14,181.3,181.26,59.12]
[1747222641330,59.14,181.3,181.29,5.5157]
[1747222641633,59.04,181.32,181.26,59.12]
[1747222642735,59.04,181.32,181.3,5.5152]
[1747222643037,58.98,181.34,181.26,59.12]
[1747222643236,1.8427,181.36,181.26,59.12]
[1747222643432,59.08,181.35,181.26,59.12]
[1747222643738,65.97748923,181.35,181.26,59.12]
[1747222644034,65.97748923,181.35,181.19,1.03194568]
[1747222644241,65.97748923,181.35,181.22,59.12]
[1747222644536,65.97748923,181.35,181.24,5.5172]
[1747222645338,65.97748923,181.35,181.23,5.5174]
[1747222645734,65.97748923,181.35,181.22,59.12]
[1747222646145,65.97748923,181.35,181.22,64.6376]
[1747222646644,5.5151,181.31,181.22,59.12]
[1747222646847,59.02,181.34,181.22,59.12]
[1747222647344,5.5158,181.29,181.26,5.5164]
[1747222647542,59.02,181.34,181.22,59.12]
[1747222648447,5.5151,181.31,181.28,5.516]
[1747222649146,5.5154,181.3,181.27,5.5162]
[1747222649646,5.5154,181.3,181.27,5.516]
[1747222649950,5.5154,181.3,181.22,59.12]
[1747222649951,59.02,181.34,181.22,59.12]
[1747222650151,5.5152,181.31,181.28,5.5158]
[1747222650353,59.02,181.34,181.22,59.12]
[1747222650549,58.88,181.33,181.22,59.12]
[1747222650748,1.8427,181.36,181.23,58.92]
[1747222650947,58.9,181.35,181.23,58.994]
[1747222651450,5.5148,181.32,181.29,5.5155]
[1747222652951,58.98,181.34,181.27,59.12]
[1747222653648,5.516,181.28,181.27,59.12]
[1747222653850,58.98,181.34,181.27,59.12]
[1747222654351,5.516,181.29,181.27,59.12]
[1747222654553,58.88,181.28,181.23,59.12]
[1747222655958,5.5167,181.26,181.23,64.6372]
[1747222656458,64.3961,181.28,181.25,5.5168]
[1747222656761,58.88,181.28,181.23,59.12]
[1747222657059,64.3962,181.28,181.25,5.5167]
[1747222657467,64.3962,181.28,181.23,59.12]
[1747222658863,64.3962,181.28,181.25,5.5168]
[1747222659165,58.88,181.28,181.23,59.12]
[1747222659462,59.12,181.33,181.23,59.12]
[1747222659463,58.86,181.3,181.23,59.12]
[1747222659962,58.86,181.3,181.28,5.516]
[1747222660763,64.3754,181.3,181.28,5.516]
[1747222661165,58.86,181.3,181.23,59.12]
[1747222661462,5.5165,181.27,181.23,59.12]
[1747222661762,5.5165,181.27,181.24,5.517]
[1747222663260,58.86,181.3,181.23,59.12]
[1747222663757,1.8139,181.29,181.23,59.12]
[1747222663963,5.5165,181.27,181.24,5.5172]
[1747222664463,1.8139,181.29,181.24,5.5172]
[1747222665066,1.8139,181.29,181.25,5.5169]
[1747222665265,5.5162,181.28,181.25,5.5169]
[1747222665465,1.8904,181.31,181.23,59.12]
[1747222665662,58.84,181.31,181.23,59.12]
[1747222665964,64.3551,181.31,181.23,59.12]
[1747222666162,64.3551,181.31,181.28,5.5158]
[1747222666365,5.5154,181.3,181.28,5.5158]
[1747222666760,5.5154,181.3,181.23,59.12]
[1747222666761,364.0,181.35,181.24,4.3159812]
[1747222667065,3.618,181.36,181.23,59.12]
[1747222667066,3.5477,181.41,181.3,4.3159812]
[1747222667257,58.82,181.4,181.31,59.12]
[1747222668465,5.5131,181.38,181.34,5.5139]
[1747222668667,5.5131,181.38,181.31,59.12]
[1747222668870,58.82,181.4,181.31,59.12]
[1747222669071,5.5128,181.39,181.31,59.12]
[1747222669668,5.5131,181.38,181.35,5.5136]
[1747222669967,5.5131,181.38,181.31,59.12]
[1747222669968,58.78,181.39,181.31,59.12]
[1747222671470,5.5134,181.37,181.34,5.514]
[1747222672371,5.5136,181.36,181.33,5.5144]
[1747222672569,58.78,181.39,181.31,59.12]
[1747222673068,5.5137,181.36,181.33,5.5143]
[1747222674165,3.5477,181.41,181.31,59.12]
[1747222674374,1.7447,181.43,181.31,59.12]
[1747222674771,5.5121,181.41,181.31,59.12]
[1747222674963,61.52,181.42,181.31,59.12]
[1747222675268,5.5127,181.39,181.35,5.5136]
[1747222675472,61.52,181.42,181.22,11.0353]
[1747222675669,61.64,181.41,181.27,122.86]
[1747222675971,5.5132,181.38,181.34,5.514]
[1747222676174,61.64,181.41,181.27,122.86]
[1747222676374,5.5133,181.37,181.33,5.5143]
[1747222677771,5.513,181.38,181.27,122.86]
[1747222678270,5.513,181.38,181.34,5.5139]
[1747222678972,61.5,181.39,181.33,5.5144]
[1747222679274,1.8261,181.4,181.32,61.22]
[1747222679469,5.5128,181.39,181.35,5.5136]
[1747222679775,5.5128,181.39,181.32,61.22]
[1747222680073,5.5128,181.39,181.35,5.5137]
[1747222680272,5.5128,181.39,181.32,61.22]
[1747222680675,5.5128,181.39,181.35,5.5137]
[1747222681173,5.5131,181.38,181.35,5.5137]
[1747222681369,5.5131,181.38,181.34,5.5141]
[1747222681570,1.8261,181.4,181.34,5.5141]
[1747222681872,1.7447,181.43,181.4,5.5121]
[1747222682370,7.2562,181.43,181.39,5.5126]
[1747222682671,7.2562,181.43,181.37,61.22]
[1747222682874,1.7447,181.43,181.37,61.22]
[1747222685375,7.2562,181.43,181.39,5.5126]
[1747222685876,7.2562,181.43,181.38,5.5129]
[1747222686173,1.7447,181.43,181.37,61.22]
[1747222686372,1.7447,181.43,181.33,61.22]
[1747222688076,1.7447,181.43,181.38,5.5129]
[1747222688278,1.7447,181.43,181.33,61.22]
[1747222689080,1.7447,181.43,181.38,5.5127]
[1747222689275,7.2563,181.43,181.38,5.5127]
[1747222689469,66.46,181.46,181.33,61.22]
[1747222689674,1.7517,181.45,181.38,5.5127]
[1747222689876,1.7517,181.45,181.33,61.22]
[1747222690176,1.78,181.46,181.35,4.30916649]
[1747222690379,1.8253,181.48,181.38,4.30916649]
[1747222690581,1.8253,181.48,181.39,67.14]
[1747222690779,1.8253,181.48,181.43,5.5114]
[1747222691081,7.3355,181.48,181.43,5.5114]
[1747222691782,5.5103,181.47,181.43,5.5114]
[1747222692081,1.8253,181.48,181.42,5.5117]
[1747222692481,5.5105,181.47,181.42,5.5117]
[1747222692677,1.8253,181.48,181.39,67.14]
[1747222692882,3.7404,181.46,181.35,4.30916649]
[1747222693082,5.5115,181.43,181.38,5.5127]
[1747222693283,5.5115,181.43,181.36,67.14]
[1747222693582,72.8909,181.45,181.4,5.5121]
[1747222693980,67.38,181.45,181.36,67.14]
[1747222694677,11.012,181.62,181.38,4.30916649]
[1747222694983,72.1273,181.54,181.39,68.62]
[1747222695180,5.5091,181.51,181.46,5.5103]
[1747222695580,5.5091,181.51,181.43,67.14]
[1747222695784,5.5094,181.5,181.43,67.14]
[1747222695982,4.30916649,181.52,181.43,67.14]
[1747222696280,4.30916649,181.53,181.44,5.5111]
[1747222696781,5.5097,181.49,181.44,5.5111]
[1747222696985,76.43646649,181.54,181.45,5.5108]
[1747222697282,72.1273,181.54,181.45,5.5108]
[1747222697482,72.1273,181.54,181.43,67.14]
[1747222697679,72.1273,181.54,181.42,5.5115]
[1747222697886,6.88996159,181.52,181.39,135.74]
[1747222698080,5.5109,181.45,181.41,5.512]
[1747222698283,68.86,181.48,181.39,135.74]
[1747222698475,5.5115,181.43,181.39,5.5126]
[1747222698681,1.827,181.47,181.36,67.12]
[1747222698884,67.12,181.46,181.36,67.12]
[1747222699078,70.752,181.46,181.36,67.12]
[1747222699787,5.5122,181.41,181.37,5.5133]
[1747222699990,3.632,181.46,181.36,67.12]
[1747222701386,9.1425,181.46,181.41,5.5118]
[1747222701983,3.632,181.46,181.4,5.5123]
[1747222702488,5.5114,181.44,181.4,5.5123]
[1747222702683,3.632,181.46,181.41,5.512]
[1747222703190,5.5111,181.45,181.41,5.512]
[1747222703690,1.8454,181.52,181.45,5.5108]
[1747222704184,1.8454,181.52,181.41,70.84]
[1747222704388,5.5095,181.5,181.41,70.84]
[1747222705188,5.5097,181.49,181.41,70.84]
[1747222706092,74.1054,181.52,181.41,70.84]
[1747222706690,74.1054,181.52,181.43,5.5112]
[1747222706891,74.1054,181.52,181.41,70.84]
[1747222707190,74.1054,181.52,181.42,5.5115]
[1747222707191,5.5107,181.46,181.42,5.5115]
[1747222707792,5.5108,181.45,181.41,76.352]
[1747222708291,70.84,181.51,181.41,76.352]
[1747222708590,72.14,181.5,181.42,5.5117]
[1747222709091,5.5107,181.46,181.42,5.5117]
[1747222710093,5.5109,181.45,181.42,5.5117]
[1747222710294,72.14,181.5,181.41,70.84]
[1747222710793,5.511,181.45,181.41,76.3518]